Workbook

Sheet abr23
A1: TABELA DE REMUNERAÇÃO DOS SERVIÇOS AUXILIARES DO TRIBUNAL DE CONTAS DO DISTRITO FEDERAL
A2: Vigência: 1º de abril de 2023 (em Reais)
A3: AUDITOR DE CONTROLE EXTERNO e
A4: ANALISTA DE ADMINISTRAÇÃO PÚBLICA
A5: Classe | B5: Padrão | C5: Vencimento | D5: GACE | E5: Remuneração
A6: A | B6: I | C6: 18675.60907 | D6: =C6*0.03 -> 560.268272 | E6: =C6+D6 -> 19235.87734
B7: II | C7: 19049.11617 | D7: =C7*0.03 -> 571.4734852 | E7: =C7+D7 -> 19620.58966
B8: III | C8: 19430.09919 | D8: 582.9029757 | E8: 20013.00216
B9: IV | C9: 19818.70809 | D9: 594.5612428 | E9: 20413.26934
B10: V | C10: 20215.0698 | D10: 606.4520939 | E10: 20821.52189
B11: VI | C11: 20619.38042 | D11: 618.5814127 | E11: 21237.96183
B12: I | C12: 21212.47249 | D12: =C12*0.03 -> 636.3741746 | E12: =C12+D12 -> 21848.84666
B13: II | C13: 21742.78664 | D13: =C13*0.03 -> 652.2835992 | E13: =C13+D13 -> 22395.07024
B14: III | C14: 22286.34523 | D14: 668.5903568 | E14: 22954.93559
A15: B | B15: IV | C15: 23177.82622 | D15: 695.3347865 | E15: 23873.161
B16: V | C16: 23757.25669 | D16: 712.7177007 | E16: 24469.97439
B17: VI | C17: 24351.19345 | D17: 730.5358036 | E17: 25081.72926
B18: I | C18: 24959.98177 | D18: 748.7994531 | E18: 25708.78122
B19: II | C19: 25583.97283 | D19: 767.519185 | E19: 26351.49202
A20: C | B20: III | C20: 26223.57694 | D20: 786.7073083 | E20: 27010.28425
B21: IV | C21: 26879.16338 | D21: 806.3749013 | E21: 27685.53828
B22: V | C22: 27551.16551 | D22: 826.5349652 | E22: 28377.70047
B23: VI | C23: 28239.91818 | D23: 847.1975455 | E23: 29087.11573
A24: Especial | B24: I | C24: 29369.52897 | D24: 881.0858691 | E24: 30250.61484
B25: II | C25: 30103.74271 | D25: 903.1122812 | E25: 31006.85499
B26: III | C26: 30856.34926 | D26: 925.6904778 | E26: 31782.03974
B27: IV | C27: 31627.75837 | D27: 948.8327512 | E27: 32576.59113
B28: V | C28: 32418.43238 | D28: 972.5529713 | E28: 33390.98535
B29: VI | C29: 33228.90334 | D29: 996.8671002 | E29: 34225.77044
A31: TÉCNICO DE CONTROLE EXTERNO e
A32: TÉCNICO DE ADMINISTRAÇÃO PÚBLICA
A33: Classe | B33: Padrão | C33: Vencimento | D33: GACE | E33: Remuneração
B34: 21 | C34: 10953.83566 | D34: =C34*0.03 -> 328.6150698 | E34: =C34+D34 -> 11282.45073
B35: 22 | C35: 11227.6755 | D35: =C35*0.03 -> 336.8302649 | E35: =C35+D35 -> 11564.50576
A36: A | B36: 23 | C36: 11508.36825 | D36: 345.2510475 | E36: 11853.6193
B37: 24 | C37: 11796.08697 | D37: 353.8826092 | E37: 12149.96958
B38: 25 | C38: 12091.01626 | D38: 362.7304878 | E38: 12453.74675
B39: 26 | C39: 12393.31762 | D39: 371.7995287 | E39: 12765.11715
A40: B | B40: 27 | C40: 12703.12951 | D40: 381.0938853 | E40: 13084.22339
B41: 28 | C41: 13211.20646 | D41: 396.3361937 | E41: 13607.54265
B42: 29 | C42: 13541.46981 | D42: 406.2440944 | E42: 13947.71391
B43: 30 | C43: 13880.02882 | D43: 416.4008646 | E43: 14296.42968
B44: 31 | C44: 14227.03988 | D44: 426.8111965 | E44: 14653.85108
B45: 32 | C45: 14582.69802 | D45: 437.4809406 | E45: 15020.17896
A46: C | B46: 33 | C46: 14947.25448 | D46: 448.4176343 | E46: 15395.67211
B47: 34 | C47: 15545.19843 | D47: 466.3559529 | E47: 16011.55438
B48: 35 | C48: 15933.80734 | D48: 478.0142201 | E48: 16411.82156
B49: 36 | C49: 16332.16146 | D49: 489.9648438 | E49: 16822.1263
B50: 37 | C50: 16740.47461 | D50: 502.2142383 | E50: 17242.68885
B51: 38 | C51: 17158.95679 | D51: 514.7687037 | E51: 17673.72549
A52: Especial | B52: 39 | C52: 17587.9601 | D52: 527.638803 | E52: 18115.5989
B53: 40 | C53: 18027.63914 | D53: 540.8291741 | E53: 18568.46831
B54: 41 | C54: 18478.33011 | D54: 554.3499034 | E54: 19032.68002
B55: 42 | C55: 18940.27707 | D55: 568.208312 | E55: 19508.48538
B56: 43 | C56: 19697.8881 | D56: 590.9366429 | E56: 20288.82474
B57: 44 | C57: 20190.33469 | D57: 605.7100406 | E57: 20796.04473
A59: Auxiliar de Administração Pública
A60: (Em extinção)
A61: Classe | B61: Padrão | C61: Vencimento* | D61: GACE | E61: Remuneração
A62: A | B62: 8 | C62: 7718.562688 | D62: =C62*0.03 -> 231.5568806 | E62: =C62+D62 -> 7950.119568
B63: 9 | C63: 7911.572039 | D63: =C63*0.03 -> 237.3471612 | E63: =C63+D63 -> 8148.9192
B64: 10 | C64: 8109.33942 | D64: 243.2801826 | E64: 8352.619602
B65: 11 | C65: 8312.081918 | D65: 249.3624575 | E65: 8561.444375
B66: 12 | C66: 8519.856566 | D66: 255.595697 | E66: 8775.452262
B67: 13 | C67: 8860.629341 | D67: 265.8188802 | E67: 9126.448221
A68: B | B68: 14 | C68: 9082.186031 | D68: 272.4655809 | E68: 9354.651612
B69: 15 | C69: 9309.242633 | D69: 279.277279 | E69: 9588.519912
B70: 16 | C70: 9541.983996 | D70: 286.2595199 | E70: 9828.243516
B71: 17 | C71: 9780.530264 | D71: 293.4159079 | E71: 10073.94617
B72: 18 | C72: 10025.03642 | D72: 300.7510927 | E72: 10325.78752
B73: 19 | C73: 10426.03472 | D73: 312.7810416 | E73: 10738.81576
A74: Especial | B74: 20 | C74: 10686.67767 | D74: 320.6003301 | E74: 11007.278
B75: 21 | C75: 10953.83566 | D75: 328.6150698 | E75: 11282.45073
B76: 22 | C76: 11227.67204 | D76: 336.8301611 | E76: 11564.5022
B77: 23 | C77: 11508.36825 | D77: 345.2510475 | E77: 11853.6193
B78: 24 | C78: 11796.08948 | D78: 353.8826845 | E78: 12149.97217
B79: 25 | C79: 12091.01448 | D79: 362.7304345 | E79: 12453.74492
A81: Cargos de Natureza Especial. Cargos em Comissão.
A82: NÍVEL | B82: Vencimento | D82: Representação
B83: Básico | D83: Mensal
A84: CNE 2 | B84: 6585.358282 | D84: 17887.95518
A85: CNE 1 | B85: 5921.936981 | D85: 16085.84308
A86: CC-6 | B86: 5295.607964 | D86: 14246.61817
A87: CC-5 | B87: 4151.737696 | D87: 11677.47513
A88: CC-4 | B88: 3745.11969 | D88: 10501.20122
A89: CC-3 | B89: 2830.448956 | D89: 8709.037678
A90: CC-2 | B90: 2553.637793 | D90: 7831.912098
A91: CC-1 | B91: 2029.766823 | D91: 6382.546483
A93: Funções de Confiança
A94: FC-4 | B94: 5784.405031
A95: FC-3 | B95: 4663.595293
A96: FC-2 | B96: 3399.658787
A97: FC-1 | B97: 2478.414328
